fUSD/lending_fUSD_20240803
["ID","MTS","AMOUNT","RATE_DAILY","PERIOD"]
[334024814,1722687039346,-200.78808493,0.00023356,2]
[334024815,1722687039355,-990.0,0.000234,2]
[334024816,1722687039365,-155.0,0.00023451,2]
[334024817,1722687039376,-6288.50435063,0.00023451,2]
[334024818,1722687039385,-500.0,0.00023499,2]
[334024819,1722687039397,-251.08403824,0.00023513,2]
[334024820,1722687039409,-248.91596176,0.00023513,2]
[334024821,1722687039419,-576.46870953,0.00023595,2]
[334024822,1722687039428,-150.0,0.00023648,2]
[334024823,1722687039438,-500.0,0.00023744,2]
[334024824,1722687039447,-500.0,0.000239,8]
[334024825,1722687039458,-420.92314047,0.00023904,2]
[334024827,1722687040115,-179.07685953,0.00023904,2]
[334024828,1722687040124,-700.0,0.00023904,2]
[334024829,1722687040134,-1100.0,0.00023904,2]
[334024830,1722687040143,-1200.0,0.00023904,2]
[334024831,1722687040152,-1100.0,0.00024,8]
[334024832,1722687040161,-327.89497507,0.000241,2]
[334024833,1722687040171,-872.05107073,0.000241,8]
[334024834,1722687040182,-659.94979241,0.000241,8]
[334024835,1722687040196,-167.99913686,0.000241,8]
[334024836,1722687040205,-362.06925163,0.00024115,2]
[334024837,1722687040216,-139.74462971,0.00024115,2]
[334024838,1722687040226,-839.05446149,0.00024124,2]
[334024839,1722687040238,-443.75707932,0.00024124,2]
[334024840,1722687040247,-961.87550092,0.00024124,2]
[334024841,1722687040259,-968.33119609,0.00024124,2]
[334024842,1722687040269,-500.0,0.00024124,2]
[334024843,1722687040278,-500.0,0.00024139,2]
[334024844,1722687040288,-799.83370838,0.00024151,2]
[334024845,1722687040298,-787.21,0.00024192,2]
[334024846,1722687040307,-43140.6126,0.00024199,2]
[334024847,1722687040316,-720.0798,0.000242,2]
[334024848,1722687040326,-2200.0,0.000242,8]
[334024849,1722687040336,-150.0,0.00024225,2]
[334024850,1722687040345,-905.0,0.00024259,2]
[334024851,1722687040355,-500.0,0.00024297,2]
[334024852,1722687040364,-2800.0,0.000243,8]
[334024853,1722687040374,-500.0,0.00024315,2]
[334024854,1722687040384,-500.0,0.00024321,2]
[334024855,1722687040394,-500.0,0.00024324,2]
[334024856,1722687040408,-500.0,0.00024344,2]
[334024857,1722687040418,-400.0,0.000244,5]
[334024858,1722687040428,-500.0,0.000244,8]
[334024859,1722687040446,-500.0,0.00024499,2]
[334024860,1722687040456,-500.0,0.000245,8]
[334024861,1722687040466,-905.0,0.00024509,2]
[334024862,1722687040477,-1000.0,0.00024557,2]
[334024863,1722687040486,-500.0,0.0002457,2]
[334024864,1722687040496,-500.0,0.000246,8]
[334024865,1722687040506,-500.0,0.00024643,2]
[334024866,1722687040515,-500.0,0.00024657,9]
[334024867,1722687040524,-493.89793635,0.00024657,9]
[334024868,1722687040534,-214.32811293,0.00024657,9]
[334024869,1722687040546,-285.67188707,0.00024657,9]
[334024870,1722687040555,-500.0,0.00024657,9]
[334024871,1722687040565,-476.64935689,0.00024657,9]
[334024872,1722687040575,-500.0,0.00024657,2]
[334024873,1722687040585,-977.26077228,0.00024673,2]
[334024874,1722687040594,-500.0,0.000247,9]
[334024875,1722687040604,-905.0,0.00024759,2]
[334024876,1722687040613,-500.0,0.00024762,2]
[334024877,1722687040623,-159.13045808,0.000248,2]
[334024878,1722687040633,-1106.0,0.000248,9]
[334024879,1722687040643,-150.0,0.00024802,2]
[334024880,1722687040652,-375.25,0.00024831,2]
[334024881,1722687040662,-200.0,0.00024882,2]
[334024882,1722687040671,-183.51522013,0.000249,2]
[334024883,1722687040681,-167.82436667,0.000249,2]
[334024884,1722687040691,-153.82,0.000249,31]
[334024885,1722687040701,-153.82,0.000249,31]
[334024886,1722687040711,-153.82,0.000249,31]
[334024887,1722687040720,-153.82,0.000249,31]
[334024888,1722687040730,-153.82,0.000249,31]
[334024889,1722687040739,-153.82,0.000249,31]
[334024890,1722687040748,-153.82,0.000249,31]
[334024891,1722687040757,-153.82,0.000249,31]
[334024892,1722687040767,-153.82,0.000249,31]
[334024893,1722687040776,-153.82,0.000249,31]
[334024894,1722687040785,-153.82,0.000249,31]
[334024895,1722687040795,-153.82,0.000249,31]
[334024896,1722687040804,-259.62,0.00024917,120]
[334024897,1722687040813,-500.0,0.00024932,120]
[334024898,1722687040823,-500.0,0.00024959,2]
[334024899,1722687040832,-2023.34906436,0.00024979,2]
[334024900,1722687040842,-366.9755387,0.00024979,2]
[334024901,1722687040851,-155.0,0.00024989,2]
[334024902,1722687040863,-206.64,0.0002499,2]
[334024903,1722687040872,-206.64,0.0002499,2]
[334024904,1722687040882,-206.64,0.0002499,2]
[334024905,1722687040891,-206.64,0.0002499,2]
[334024906,1722687040901,-206.64,0.0002499,2]
[334024907,1722687040911,-206.64,0.0002499,2]
[334024908,1722687040921,-206.64,0.0002499,2]
[334024909,1722687040930,-206.64,0.0002499,2]
[334024910,1722687040940,-206.64,0.0002499,2]
[334024911,1722687040950,-206.64,0.0002499,2]
[334024912,1722687040959,-206.64,0.0002499,2]
[334024913,1722687040969,-206.64,0.0002499,2]
[334024914,1722687040979,-206.64,0.0002499,2]
[334024915,1722687040989,-206.64,0.0002499,2]
[334024916,1722687040999,-206.64,0.0002499,2]
[334024917,1722687041008,-206.64,0.0002499,2]
[334024918,1722687041018,-206.64,0.0002499,2]
[334024919,1722687041028,-206.64,0.0002499,2]
[334024920,1722687041038,-206.64,0.0002499,2]
[334024921,1722687041047,-206.64,0.0002499,2]
[334024922,1722687041057,-206.64,0.0002499,2]
[334024923,1722687041066,-206.64,0.0002499,2]
[334024924,1722687041076,-206.64,0.0002499,2]
[334024925,1722687041085,-189.51306565,0.0002499,2]
[334024926,1722687041098,-17.12693435,0.0002499,2]
[334024927,1722687041108,-206.64,0.0002499,2]
[334024928,1722687041117,-106.18050913,0.0002499,2]
[334024930,1722687041129,-100.45949087,0.0002499,2]
[334024932,1722687041139,-206.64,0.0002499,2]
[334024934,1722687041148,-206.64,0.0002499,2]
[334024936,1722687041158,-206.64,0.0002499,2]
[334024938,1722687041168,-206.64,0.0002499,2]
[334024940,1722687041178,-206.64,0.0002499,2]
[334024942,1722687041189,-206.64,0.0002499,2]
[334024944,1722687041199,-206.64,0.0002499,2]
[334024946,1722687041209,-206.64,0.0002499,2]
[334024948,1722687041218,-206.64,0.0002499,2]
[334024951,1722687041227,-206.64,0.0002499,2]
[334024953,1722687041237,-206.64,0.0002499,2]
[334024955,1722687041247,-206.64,0.0002499,2]
[334024957,1722687041257,-206.64,0.0002499,2]
[334024958,1722687041267,-206.64,0.0002499,2]
[334024959,1722687041277,-206.64,0.0002499,2]
[334024960,1722687041287,-206.64,0.0002499,2]
[334024961,1722687041297,-206.64,0.0002499,2]
[334024962,1722687041306,-206.64,0.0002499,2]
[334024963,1722687041316,-206.64,0.0002499,2]
[334024964,1722687041326,-206.64,0.0002499,2]
[334024965,1722687041336,-206.64,0.0002499,2]
[334024966,1722687041345,-206.64,0.0002499,2]
[334024967,1722687041355,-206.64,0.0002499,2]
[334024968,1722687041365,-206.64,0.0002499,2]
[334024969,1722687041375,-206.64,0.0002499,2]
[334024970,1722687041385,-206.64,0.0002499,2]
[334024971,1722687041395,-206.64,0.0002499,2]
[334024972,1722687041409,-206.64,0.0002499,2]
[334024973,1722687041419,-206.64,0.0002499,2]
[334024974,1722687041429,-206.64,0.0002499,2]
[334024975,1722687041439,-4.38381029,0.0002499,2]
[334024976,1722687041451,-202.25618971,0.0002499,2]
[334024977,1722687041460,-206.64,0.0002499,2]
[334024978,1722687041470,-206.64,0.0002499,2]
[334024979,1722687041482,-206.64,0.0002499,2]
[334024980,1722687041492,-206.64,0.0002499,2]
[334024981,1722687041502,-206.64,0.0002499,2]
[334024982,1722687041511,-206.64,0.0002499,2]
[334024983,1722687041521,-206.64,0.0002499,2]
[334024984,1722687041531,-206.64,0.0002499,2]
[334024985,1722687041541,-206.64,0.0002499,2]
[334024986,1722687041551,-206.64,0.0002499,2]
[334024987,1722687041560,-206.64,0.0002499,2]
[334024988,1722687041569,-206.64,0.0002499,2]
[334024989,1722687041579,-206.64,0.0002499,2]
[334024990,1722687041589,-206.64,0.0002499,2]
[334024991,1722687041598,-206.64,0.0002499,2]
[334024992,1722687041607,-206.64,0.0002499,2]
[334024993,1722687041617,-206.64,0.0002499,2]
[334024994,1722687041627,-206.64,0.0002499,2]
[334024995,1722687041636,-206.64,0.0002499,2]
[334024996,1722687041646,-206.64,0.0002499,2]
[334024997,1722687041655,-206.64,0.0002499,2]
[334024998,1722687041665,-206.64,0.0002499,2]
[334024999,1722687041674,-206.64,0.0002499,2]
[334025000,1722687041683,-206.64,0.0002499,2]
[334025001,1722687041693,-206.64,0.0002499,2]
[334025002,1722687041703,-206.64,0.0002499,2]
[334025003,1722687041713,-206.64,0.0002499,2]
[334025004,1722687041723,-206.64,0.0002499,2]
[334025005,1722687041732,-206.64,0.0002499,2]
[334025006,1722687041742,-206.64,0.0002499,2]
[334025007,1722687041752,-206.64,0.0002499,2]
[334025008,1722687041761,-206.64,0.0002499,2]
[334025009,1722687041770,-206.64,0.0002499,2]
[334025010,1722687041780,-206.64,0.0002499,2]
[334025011,1722687041790,-206.64,0.0002499,2]
[334025012,1722687041799,-206.64,0.0002499,2]
[334025013,1722687041809,-206.64,0.0002499,2]
[334025014,1722687041819,-206.64,0.0002499,2]
[334025015,1722687041828,-206.64,0.0002499,2]
[334025016,1722687041838,-206.64,0.0002499,2]
[334025017,1722687041848,-206.64,0.0002499,2]
[334025018,1722687041859,-206.64,0.0002499,2]
[334025019,1722687041869,-500.0,0.00024991,2]
[334025020,1722687041878,-500.0,0.00024999,9]
[334025021,1722687041888,-500.0,0.00024999,9]
[334025022,1722687041897,-500.0,0.00024999,9]
[334025023,1722687041907,-43.38520985,0.00024999,9]
[334025024,1722687041920,-456.61479015,0.00024999,9]
[334025025,1722687041930,-500.0,0.00024999,9]
[334025026,1722687041939,-500.0,0.00024999,9]
[334025027,1722687041949,-500.0,0.00024999,9]
[334025028,1722687041959,-500.0,0.00024999,9]
[334025029,1722687041968,-400.24,0.00024999,9]
[334025030,1722687041978,-1000.0,0.00024999,2]
[334025031,1722687041987,-779.23176738,0.00025,2]
[334025032,1722687041997,-193612.78131123,0.00025,7]
[334025033,1722687042009,-1819.99999776,0.00025,7]
[334025034,1722687042024,-1290.26864571,0.00025,7]
[334025035,1722687042035,-989.22878096,0.00025,7]
[334025036,1722687042046,-952.47687904,0.00025,7]
[334025037,1722687042057,-4130.24694756,0.00025,7]
[334025038,1722687042068,-530.86535505,0.00025,7]
[334025039,1722687042079,-453.8784,0.00025,7]
[334025040,1722687042090,-16435.21990553,0.00025,7]
[334025041,1722687042099,-123411.37298042,0.00025,2]
[334025042,1722687042111,-852.82156985,0.00025,2]
[334025043,1722687042122,-198200.30956167,0.00025,2]
[334025044,1722687042134,-1590.84533013,0.00025,2]
[334025045,1722687042145,-10469.2423108,0.00025,2]
[334025046,1722687042166,-155.0,0.00020999,2]
[334025047,1722687042175,-985.8915915,0.00025,2]
[334025048,1722687042187,-3050.51565051,0.00025,2]
[334025049,1722687042198,-5169.12813013,0.00025,2]
[334025058,1722687043060,-519929.72545208,0.00025,2]
[334025059,1722687043072,-998781.86513123,0.00025,2]
[334025060,1722687043083,-5087.95758776,0.00025,2]
[334025061,1722687043096,-615.28590621,0.00025,2]
[334025062,1722687043107,-436.2230877,0.00025,2]
[334025063,1722687043118,-310.335,0.00025,2]
[334025064,1722687043129,-29586.91050982,0.00025,2]
[334025065,1722687043141,-1017.6830018,0.00025,2]
[334025066,1722687043153,-400.36535376,0.00025,2]
[334025067,1722687043165,-446.51173508,0.00025,2]
[334025068,1722687043176,-281.326473,0.00025,2]
[334025069,1722687043188,-600.64996105,0.00025,2]
[334025070,1722687043210,-16736.653565,0.00025,2]
[334025071,1722687043226,-313.60578957,0.00025,2]
[334025072,1722687043281,-380.60394406,0.00025,2]
[334025073,1722687043292,-287.66051968,0.00025,2]
[334025074,1722687043303,-65086.75657293,0.00025,2]
[334025075,1722687043315,-4010.32728496,0.00025,2]
[334025076,1722687043326,-35632.47706054,0.00025,2]
[334025077,1722687043338,-5179.63126553,0.00025,2]
[334025078,1722687043349,-3657.00359666,0.00025,2]
[334025079,1722687043361,-575.47544634,0.00025,2]
[334025082,1722687045094,-481.5071643,0.00025,2]
[334025083,1722687045108,-460.32635449,0.00025,2]
[334025087,1722687046177,-1930.20669701,0.00024124,2]
[334025088,1722687046186,-96586.12907348,0.00025,2]
[334025089,1722687046228,-735.7335,0.00025,2]
[334025090,1722687046240,-3252.54000001,0.00025,2]
[334025091,1722687046282,-792.73224283,0.00025,2]
[334025092,1722687046337,-292.90153814,0.00025,2]
[334025093,1722687046498,-1470.51803953,0.00025,2]
[334025095,1722687387687,-299.71268725,0.00011022,2]
[334025096,1722687387710,-200.0,0.000111,2]
[334025097,1722687387731,-200.0,0.000111,2]
[334025098,1722687397175,500.0,0.00013141,2]
[334025099,1722687408634,278.03390214,0.000111,2]
[334025100,1722687409961,1049.72746869,0.000111,2]
[334025101,1722687413312,227.60153513,0.000111,2]
[334025102,1722687416793,449.14284782,0.000111,2]
[334025103,1722687417436,288.23391433,0.000111,2]
[334025104,1722687428117,170.34699346,0.000111,2]
[334025105,1722687434093,511.86220252,0.000111,2]
[334025106,1722687435961,412.76630026,0.000111,2]
[334025107,1722687443857,500.0,0.00013133,2]
[334025108,1722687468357,1238.79728845,0.00013133,2]
[334025109,1722687482457,181.66385154,0.00013133,2]
[334025110,1722687489313,500.0,0.00013124,2]
[334025111,1722687535060,500.0,0.00013115,2]
[334025112,1722687580856,500.0,0.00013106,2]
[334025113,1722687626755,500.0,0.00013097,2]
[334025114,1722687672206,500.0,0.00013089,2]
[334025115,1722687718909,500.0,0.0001308,2]
[334025116,1722687764699,500.0,0.00013071,2]
[334025118,1722687810521,500.0,0.00013062,2]
[334025120,1722687856594,500.0,0.00013053,2]
[334025121,1722687902415,500.0,0.00013045,2]
[334025122,1722687908585,4964.11100841,0.00011,2]
[334025123,1722687920111,2888.53313611,9e-05,2]
[334025126,1722688072156,26112.68,0.00018,30]
[334025158,1722688232547,-207.51506157,0.0001,2]
[334025159,1722688232557,-641.237,0.00010466,2]
[334025160,1722688232567,-36140.33793843,0.00010567,2]
[334025161,1722688232606,-1746.55062526,0.00010567,2]
[334025162,1722688232618,-3504.07490294,0.00010567,2]
[334025163,1722688232667,-2339.03653337,0.00010567,2]
[334025164,1722688232677,-354.72083946,0.000109,2]
[334025165,1722688232687,-314.06557764,0.000109,2]
[334025166,1722688232697,-181.04293925,0.00010909,2]
[334025167,1722688232707,-155.0,0.00010909,2]
[334025168,1722688232716,-155.0,0.00010909,2]
[334025169,1722688232726,-301.76390176,0.0001099,2]
[334025170,1722688232736,-150.23,0.0001099,2]
[334025171,1722688232745,-150.23,0.0001099,2]
[334025172,1722688232756,-150.23,0.0001099,2]
[334025173,1722688232770,-150.23,0.0001099,2]
[334025174,1722688232780,-150.23,0.0001099,2]
[334025175,1722688232789,-150.23,0.0001099,2]
[334025176,1722688232799,-150.23,0.0001099,2]
[334025177,1722688232810,-150.23,0.0001099,2]
[334025178,1722688232820,-150.23,0.0001099,2]
[334025179,1722688232829,-150.23,0.0001099,2]
[334025180,1722688232842,-150.23,0.0001099,2]
[334025181,1722688232852,-40.56728693,0.00010999,2]
[334025182,1722688233091,-196.23617514,0.00010999,2]
[334025183,1722688233102,-500.0,0.00010999,2]
[334025184,1722688233111,-379.90416069,0.00010999,2]
[334025185,1722688233123,-120.09583931,0.00010999,2]
[334025186,1722688233133,-500.0,0.00010999,2]
[334025187,1722688233143,-500.0,0.00010999,2]
[334025188,1722688233153,-500.0,0.00010999,2]
[334025189,1722688233163,-290.53770902,0.00010999,2]
[334025190,1722688233173,-9113.51068708,0.00011,2]
[334025192,1722688238147,-468.87,0.00011,2]
[334025193,1722688238542,-1075631.19260824,0.00011,2]
[334025194,1722688238555,-624.63855005,0.00011,2]
[334025195,1722688239013,-8215.31645958,0.00011,2]
[334025203,1722688240318,-2911.38970067,0.00011,2]
[334025204,1722688240379,-427.8153428,0.00011,2]
[334025205,1722688240441,-1358.30303484,0.00011,2]
[334025206,1722688240481,-489.17891229,0.00011,2]
[334025207,1722688240610,-1997.8168,0.00011,2]
[334025208,1722688240670,-568.51573474,0.00011,2]
[334025209,1722688240681,-7759.32294957,0.00011,2]
[334025210,1722688240692,-927.39650814,0.00011,2]
[334025217,1722688243178,-1377.74172289,0.00011,2]
[334025218,1722688243238,-4675.74706937,0.00011,2]
[334025219,1722688243300,-740.14406386,0.00011,2]
[334025220,1722688243418,-467.72435326,0.00011,2]
[334025222,1722688244431,-7879.30901725,0.00011,2]
[334025236,1722688247235,-553.97336084,0.00011,2]
[334025237,1722688247246,-984.5688248,0.00011,2]
[334025238,1722688247353,-54623.87324325,0.00011,2]
[334025239,1722688247366,-103733.73260085,0.00011,2]
[334025240,1722688247377,-52344.34499921,0.00011,2]
[334025241,1722688247413,-12236.2,0.00011,2]
[334025242,1722688247475,-1555.975,0.00011,2]
[334025265,1722689432371,-480.65,9.825e-05,2]
[334025267,1722689432381,-153.57996655,9.888e-05,2]
[334025268,1722689432390,-151.30090361,9.888e-05,2]
[334025269,1722689432399,-820.39,0.00010592,2]
[334025270,1722689432408,-300.0,0.00010899,2]
[334025271,1722689432417,-94.07912984,0.000109,2]
[334025272,1722689432432,-97.82234799,0.000109,2]
[334025273,1722689432441,-151.2864669,0.000109,2]
[334025274,1722689432450,-183.51522012,0.000109,2]
[334025275,1722689432459,-1983.37596499,0.000109,2]
[334025276,1722689432470,-1109.57467919,0.000109,2]
[334025277,1722689432479,-236.48055964,0.000109,2]
[334025278,1722689432488,-150.11721836,0.000109,2]
[334025279,1722689432497,-159.13045808,0.000109,2]
[334025280,1722689432506,-1394.58708473,0.00010959,2]
[334025281,1722689432517,-659.64291527,0.00010959,2]
[334025282,1722689432526,-638.6,0.00010959,2]
[334025283,1722689432535,-155.6565592,0.00010973,2]
[334025284,1722689432545,-150.0,0.00010989,2]
[334025285,1722689432554,-10479.24689634,0.0001099,2]
[334025286,1722689432563,-150.23,0.0001099,2]
[334025287,1722689432572,-150.23,0.0001099,2]
[334025288,1722689432581,-150.23,0.0001099,2]
[334025289,1722689432590,-150.23,0.0001099,2]
[334025290,1722689432599,-150.23,0.0001099,2]
[334025291,1722689432609,-150.23,0.0001099,2]
[334025292,1722689432627,-150.0,0.00010999,2]
[334025293,1722689432636,-373.43391688,0.00010999,2]
[334025294,1722689432646,-173.29801458,0.00010999,2]
[334025295,1722689432655,-500.0,0.00010999,2]
[334025296,1722689432664,-500.0,0.00010999,2]
[334025297,1722689432673,-338.22623531,0.00010999,2]
[334025298,1722689432682,-224.70840909,0.00011,2]
[334025299,1722689432698,-781.03258899,0.00011,2]
[334025300,1722689432709,-7211.0,0.00011,2]
[334025301,1722689432720,-84584.43425595,0.00011,2]
[334025302,1722689432734,-15011.14076,0.00011,2]
[334025303,1722689432745,-1284.35585131,0.00011,2]
[334025304,1722689432756,-876.72999162,0.00011,2]
[334025305,1722689432767,-2194.55656055,0.00011,2]
[334025306,1722689432779,-3348.64538502,0.00011,2]
[334025307,1722689432790,-594.67731106,0.00011,2]
[334025308,1722689432801,-251.35461498,0.00011,2]
[334025309,1722689432811,-506.58096069,0.00011,2]
[334025312,1722689438567,-1573.57344927,0.00011,2]
[334025315,1722689438956,-274.44535204,0.00011,2]
[334025318,1722689438967,-264.43385958,0.00011,2]
[334025320,1722689438980,-782.3249379,0.00011,2]
[334025332,1722689440441,-25122.81362145,0.00011,2]
[334025334,1722689440615,-485.3862,0.00011,2]
[334025335,1722689440632,-1555.90417,0.00011,2]
[334025336,1722689442070,-650.0,0.00011,2]
[334025356,1722689443382,-880.36175698,0.00011,2]
[334025357,1722689443393,-3465.7968536,0.00011,2]
[334025358,1722689443403,-555.97063078,0.00011,2]
[334025359,1722689443439,-1262.95837385,0.00011,2]
[334025360,1722689443498,-657.39,0.00011,2]
[334025361,1722689443509,-8479.63585047,0.00011,2]
[334025362,1722689443520,-1625.69099864,0.00011,2]
[334025363,1722689443531,-541.89266789,0.00011,2]
[334025364,1722689443556,-730.07140233,0.00011,2]
[334025365,1722689443567,-652.62529538,0.00011,2]
[334025366,1722689443615,-3606.14856082,0.00011,2]
[334025367,1722689443627,-628.210864,0.00011,2]
[334025375,1722689445314,-342160.0,0.00011,2]
[334025378,1722689446595,-542.29893041,0.00010945,2]
[334025379,1722689446606,-2604.7579682,0.00010945,2]
[334025380,1722689446655,-181.22863839,0.00010945,2]
[334025381,1722689446664,-552.78777634,0.00011,2]
[334025382,1722689446716,-1481.03401387,0.00011,2]
[334025383,1722689446727,-5362.43495099,0.00011,2]
[334025384,1722689446777,-943.31862009,0.00011,2]
[334025385,1722689446791,-37279.33280405,0.00011,2]
[334025386,1722689446838,-3704.64947596,0.00011,2]
[334025387,1722689446899,-874.95189365,0.00011,2]
[334025388,1722689446961,-22434.28549199,0.00011,2]
[334025389,1722689446973,-105794.54340388,0.00011,2]
[334025390,1722689446984,-173400.5812,0.00011,2]
[334025391,1722689446995,-79509.6545,0.00011,2]
[334025392,1722689447006,-40502.67236916,0.00011,2]
[334025393,1722689447018,-4719.71862452,0.00011,2]
[334025394,1722689447029,-1283.8450912,0.00011,2]
[334025396,1722689829511,1049.73016214,0.00017807,40]
[334025398,1722690043245,-540.39,9.639e-05,2]
[334025399,1722690043266,-200.0,9.64e-05,2]
[334025400,1722690043286,-834.72,0.00010486,2]
[334025401,1722690043308,-300.0,0.0001078,2]
[334025402,1722690043330,-150.0,0.0001078,2]
[334025403,1722690043352,-27974.89,0.00010781,2]
[334025404,1722690384394,513.37,8.219e-05,2]
[334025405,1722690446143,1284.22835153,8.219e-05,2]
[334025406,1722690481376,4052.27718785,8.219e-05,2]
[334025407,1722690485644,227.60153513,8.219e-05,2]
[334025408,1722690498051,5298.9255704,8.219e-05,2]
[334025409,1722690536109,1284.22835153,8.219e-05,2]
[334025410,1722690616723,307.10067312,8.219e-05,2]
[334025411,1722690620588,227.60153513,8.219e-05,2]
[334025412,1722690627418,485.31544336,8.219e-05,2]
[334025413,1722690631091,301.35135195,8.219e-05,2]
[334025414,1722690631112,982.87699958,8.219e-05,2]
[334025433,1722690631626,-250.0,9.802e-05,2]
[334025434,1722690631636,-300.0,9.815e-05,2]
[334025435,1722690631646,-1215.30034146,9.816e-05,2]
[334025436,1722690631658,-4300.0,9.816e-05,2]
[334025437,1722690631669,-1171.32115809,9.816e-05,2]
[334025438,1722690631680,-2300.0,9.816e-05,2]
[334025439,1722690631702,-284.37,9.816e-05,2]
[334025440,1722690631907,-729.00850045,9.816e-05,2]
[334025441,1722690631917,-200.0,9.866e-05,2]
[334025442,1722690631926,-692.74549868,9.962e-05,2]
[334025443,1722690631936,-207.00138333,9.962e-05,2]
[334025444,1722690631946,-162.27,9.963e-05,2]
[334025445,1722690631955,-3162.14,0.00010086,2]
[334025446,1722690631964,-1762.3162504,0.00010091,2]
[334025447,1722690631977,-22137.6837496,0.00010091,2]
[334025448,1722690631986,-196.42020269,0.000101,2]
[334025449,1722690631996,-960.0,0.0001013,2]
[334025450,1722690632006,-385.82,0.00010161,2]
[334025451,1722690632016,-500.0,0.00010199,2]
[334025452,1722690632026,-289.9,0.00010228,2]
[334025453,1722690632035,-200.0,0.0001027,2]
[334025454,1722690632044,-1173.51,0.0001027,2]
[334025455,1722690632054,-2332.34,0.00010359,2]
[334025456,1722690632063,-266.6,0.00010391,2]
[334025457,1722690632073,-513.37,0.00010476,2]
[334025458,1722690632082,-23492.80927901,0.00010781,2]
[334025459,1722690632105,-355.41834579,0.00010781,2]
[334025460,1722690632185,-500.0,0.00010781,2]
[334025461,1722690632299,-1400.0,0.00010781,2]
[334025462,1722690632311,-25939.7723752,0.00010781,2]
[334025463,1722690632320,-178.46,0.0001085,2]
[334025464,1722690632330,-173.97,0.00010859,2]
[334025465,1722690632339,-191.90147782,0.000109,2]
[334025466,1722690632348,-151.28646689,0.000109,2]
[334025467,1722690632358,-183.51522012,0.000109,2]
[334025468,1722690632367,-753.7732008,0.000109,2]
[334025469,1722690632377,-1795.99273784,0.000109,2]
[334025470,1722690632386,-333.8,0.000109,2]
[334025471,1722690632395,-2000.0,0.00010959,2]
[334025472,1722690632404,-184.78,0.00010959,2]
[334025473,1722690632414,-250.0,0.00010959,2]
[334025474,1722690632424,-153.99,0.00010959,2]
[334025475,1722690632433,-769.96,0.00010959,2]
[334025476,1722690632443,-1500.0,0.00010959,5]
[334025477,1722690632453,-150.0,0.00010959,2]
[334025478,1722690632462,-150.23,0.0001099,2]
[334025479,1722690632472,-150.23,0.0001099,2]
[334025481,1722690632481,-150.23,0.0001099,2]
[334025483,1722690632490,-228071.45791426,0.00011,2]
[334025484,1722690632502,-325.35441,0.00011,2]
[334025485,1722690632602,220.12459623,8.219e-05,2]
[334025487,1722690637556,-11129.9312,0.00011,2]
[334025488,1722690637567,-34041.99926794,0.00011,2]
[334025489,1722690637665,-862.11130197,0.00011,2]
[334025490,1722690637724,-300.0,0.00011,2]
[334025491,1722690637736,-4009.08960995,0.00011,2]
[334025492,1722690637747,-334.56981061,0.00011,2]
[334025493,1722690637758,-93087.20397211,0.00011,2]
[334025494,1722690637784,-19074.73857867,0.00011,2]
[334025495,1722690637796,-3548.0713122,0.00011,2]
[334025496,1722690637807,-275.46772006,0.00011,2]
[334025497,1722690637818,-1202.01693341,0.00011,2]
[334025498,1722690637848,-421.78588728,0.00011,2]
[334025510,1722690639682,-1458.91842534,0.00011,2]